[Event "*** Titled Tuesday 3|2 Blitz (Early)"]
[Site "Chess.com"]
[Date "2016.11.01"]
[Round "4"]
[White "Grebeniuk-S"]
[Black "Peroncio"]
[Result "1-0"]
[WhiteElo "2413"]
[BlackElo "2512"]
[TimeControl "180+2"]
[EndTime "11:51:58 PDT"]
[Termination "Grebeniuk-S won by checkmate"]

1. d4 {[%clk 0:03:02]} 1... Nf6 {[%clk 0:03:00.6]} 2. Nf3 {[%clk 0:03:02.8]}
2... c5 {[%clk 0:03:01.4]} 3. d5 {[%clk 0:03:03.8]} 3... g6 {[%clk 0:03:01.2]}
4. Nc3 {[%clk 0:03:04.8]} 4... Bg7 {[%clk 0:03:00.7]} 5. e4 {[%clk 0:03:06.2]}
5... O-O {[%clk 0:03:01.5]} 6. h3 {[%clk 0:03:07.2]} 6... d6 {[%clk 0:03:01.4]}
7. Bd3 {[%clk 0:03:08.4]} 7... b5 {[%clk 0:02:49]} 8. Nxb5 {[%clk 0:02:45.5]}
8... Na6 {[%clk 0:02:29.3]} 9. O-O {[%clk 0:02:41.2]} 9... Nb4 {[%clk
0:02:30.2]} 10. Nc3 {[%clk 0:02:19.6]} 10... Nxd3 {[%clk 0:02:29.8]} 11. cxd3
{[%clk 0:02:21.5]} 11... Ba6 {[%clk 0:02:29.8]} 12. Re1 {[%clk 0:02:21.7]} 12...
Qa5 {[%clk 0:02:27.3]} 13. d4 {[%clk 0:02:18.1]} 13... cxd4 {[%clk 0:02:27.3]}
14. Nxd4 {[%clk 0:02:20]} 14... Bb7 {[%clk 0:02:07.1]} 15. Nb3 {[%clk
0:02:03.5]} 15... Qa6 {[%clk 0:02:05.8]} 16. Be3 {[%clk 0:02:03.7]} 16... Rfc8
{[%clk 0:02:04.8]} 17. Bd4 {[%clk 0:02:03.6]} 17... Rc4 {[%clk 0:01:52.6]} 18.
Qd2 {[%clk 0:01:39.2]} 18... Rac8 {[%clk 0:01:52.7]} 19. Rad1 {[%clk 0:01:39.8]}
19... h5 {[%clk 0:01:49.8]} 20. e5 {[%clk 0:01:30.7]} 20... dxe5 {[%clk
0:01:12.1]} 21. Bxe5 {[%clk 0:01:31.9]} 21... Rd8 {[%clk 0:01:08]} 22. Qe3
{[%clk 0:00:57.3]} 22... Nxd5 {[%clk 0:00:46.9]} 23. Nxd5 {[%clk 0:00:56.9]}
23... Rxd5 {[%clk 0:00:48.6]} 24. Rxd5 {[%clk 0:00:52.1]} 24... Bxd5 {[%clk
0:00:50.5]} 25. Bxg7 {[%clk 0:00:51.2]} 25... Kxg7 {[%clk 0:00:52]} 26. Qe5+
{[%clk 0:00:45.9]} 26... Qf6 {[%clk 0:00:30.2]} 27. Qxd5 {[%clk 0:00:45.7]}
27... Rc2 {[%clk 0:00:31.8]} 28. Qd4 {[%clk 0:00:39.7]} 28... Rxb2 {[%clk
0:00:32.1]} 29. Qxf6+ {[%clk 0:00:37.3]} 29... Kxf6 {[%clk 0:00:29.9]} 30. Ra1
{[%clk 0:00:37.9]} 30... e5 {[%clk 0:00:28.4]} 31. Nc5 {[%clk 0:00:34.2]} 31...
Rc2 {[%clk 0:00:25.1]} 32. Nd3 {[%clk 0:00:22.7]} 32... Ke6 {[%clk 0:00:21.1]}
33. a4 {[%clk 0:00:20.1]} 33... Rc3 {[%clk 0:00:19.9]} 34. Ne1 {[%clk
0:00:09.1]} 34... f5 {[%clk 0:00:19.8]} 35. Kf1 {[%clk 0:00:10.4]} 35... e4
{[%clk 0:00:18.3]} 36. Ke2 {[%clk 0:00:11.2]} 36... f4 {[%clk 0:00:19.7]} 37.
Ra2 {[%clk 0:00:11]} 37... g5 {[%clk 0:00:19.9]} 38. Nc2 {[%clk 0:00:11.2]}
38... Ke5 {[%clk 0:00:19.5]} 39. a5 {[%clk 0:00:11.7]} 39... g4 {[%clk
0:00:19.8]} 40. hxg4 {[%clk 0:00:12.2]} 40... hxg4 {[%clk 0:00:21.7]} 41. a6
{[%clk 0:00:12.9]} 41... Rc5 {[%clk 0:00:11.3]} 42. g3 {[%clk 0:00:09.4]} 42...
Kf5 {[%clk 0:00:08.2]} 43. gxf4 {[%clk 0:00:10.3]} 43... Kxf4 {[%clk 0:00:10.1]}
44. Ne3 {[%clk 0:00:11.8]} 44... Rb5 {[%clk 0:00:08.9]} 45. Ng2+ {[%clk
0:00:11.2]} 45... Kf5 {[%clk 0:00:09.4]} 46. Ne3+ {[%clk 0:00:13.1]} 46... Kf4
{[%clk 0:00:10.3]} 47. Nf1 {[%clk 0:00:13.2]} 47... Rb6 {[%clk 0:00:10.2]} 48.
Ng3 {[%clk 0:00:14.1]} 48... Rb4 {[%clk 0:00:11.1]} 49. Nf1 {[%clk 0:00:14.4]}
49... Rb6 {[%clk 0:00:11.9]} 50. Nd2 {[%clk 0:00:15.9]} 50... Rb4 {[%clk
0:00:13.3]} 51. Nf1 {[%clk 0:00:15]} 51... Rb3 {[%clk 0:00:14.1]} 52. Ne3 {[%clk
0:00:16]} 52... Rb5 {[%clk 0:00:13.7]} 53. Nc4 {[%clk 0:00:16.7]} 53... Rb4
{[%clk 0:00:14.2]} 54. Nd6 {[%clk 0:00:17.6]} 54... Rb6 {[%clk 0:00:14.1]} 55.
Nc8 {[%clk 0:00:18.5]} 55... Rb3 {[%clk 0:00:11.1]} 56. Nxa7 {[%clk 0:00:19.4]}
56... g3 {[%clk 0:00:11.4]} 57. fxg3+ {[%clk 0:00:20.7]} 57... Rxg3 {[%clk
0:00:13.2]} 58. Kf1 {[%clk 0:00:21.1]} 58... e3 {[%clk 0:00:13.2]} 59. Nc6
{[%clk 0:00:18.6]} 59... Rg6 {[%clk 0:00:13.9]} 60. a7 {[%clk 0:00:18.1]} 60...
Rxc6 {[%clk 0:00:13.5]} 61. a8=Q {[%clk 0:00:18.8]} 61... Rc1+ {[%clk
0:00:14.6]} 62. Ke2 {[%clk 0:00:19.7]} 62... Rg1 {[%clk 0:00:15.4]} 63. Ra4+
{[%clk 0:00:20.4]} 63... Kg3 {[%clk 0:00:15.8]} 64. Qg8+ {[%clk 0:00:21.3]}
64... Kh2 {[%clk 0:00:17.2]} 65. Rh4# {[%clk 0:00:22]} 1-0

[Event "*** Titled Tuesday 3|2 Blitz (Early)"]
[Site "Chess.com"]
[Date "2016.11.01"]
[Round "4"]
[White "E-Shaposhnikov"]
[Black "LawrenceTrent"]
[Result "1/2-1/2"]
[WhiteElo "2706"]
[BlackElo "2540"]
[TimeControl "180+2"]
[EndTime "11:52:16 PDT"]
[Termination "Game drawn - insufficient material"]

1. Nf3 {[%clk 0:03:01.9]} 1... Nf6 {[%clk 0:02:56.2]} 2. c4 {[%clk 0:03:02.7]}
2... g6 {[%clk 0:02:57.3]} 3. Nc3 {[%clk 0:03:04]} 3... Bg7 {[%clk 0:02:58.6]}
4. e4 {[%clk 0:03:05.5]} 4... d6 {[%clk 0:03:00.1]} 5. d4 {[%clk 0:03:07]} 5...
O-O {[%clk 0:03:01.5]} 6. Be2 {[%clk 0:03:08.6]} 6... e5 {[%clk 0:03:02.7]} 7.
O-O {[%clk 0:03:10.2]} 7... Nbd7 {[%clk 0:03:03.3]} 8. Re1 {[%clk 0:03:06.2]}
8... Re8 {[%clk 0:03:03.8]} 9. d5 {[%clk 0:03:03.6]} 9... a5 {[%clk 0:03:02.5]}
10. Bg5 {[%clk 0:02:57.8]} 10... h6 {[%clk 0:03:02]} 11. Bh4 {[%clk 0:02:56.8]}
11... Nc5 {[%clk 0:03:02]} 12. Nd2 {[%clk 0:02:56.9]} 12... Bd7 {[%clk
0:02:57.1]} 13. Qc2 {[%clk 0:02:48.4]} 13... g5 {[%clk 0:02:44.5]} 14. Bg3
{[%clk 0:02:48.9]} 14... h5 {[%clk 0:02:46]} 15. h4 {[%clk 0:02:31.6]} 15... Nh7
{[%clk 0:02:40.3]} 16. hxg5 {[%clk 0:02:28.3]} 16... Qxg5 {[%clk 0:02:35.1]} 17.
b3 {[%clk 0:02:27]} 17... Nf6 {[%clk 0:02:30.2]} 18. a3 {[%clk 0:02:20.3]} 18...
Na6 {[%clk 0:02:27]} 19. Rab1 {[%clk 0:02:18.4]} 19... h4 {[%clk 0:02:26.4]} 20.
Nf3 {[%clk 0:02:18.5]} 20... Qh6 {[%clk 0:02:24.3]} 21. Bxh4 {[%clk 0:02:05.2]}
21... Nh5 {[%clk 0:02:21.5]} 22. g3 {[%clk 0:02:03.6]} 22... Qg6 {[%clk
0:02:15.5]} 23. b4 {[%clk 0:01:52.9]} 23... f5 {[%clk 0:02:12.1]} 24. exf5
{[%clk 0:01:52.3]} 24... Bxf5 {[%clk 0:02:11.2]} 25. Qb2 {[%clk 0:01:40.2]}
25... e4 {[%clk 0:02:04.2]} 26. Ng5 {[%clk 0:01:33.6]} 26... Bf6 {[%clk
0:01:39.7]} 27. Bxh5 {[%clk 0:01:23.5]} 27... Qxh5 {[%clk 0:01:39.3]} 28. Qe2
{[%clk 0:01:04.5]} 28... Qxe2 {[%clk 0:00:44.6]} 29. Nxe2 {[%clk 0:01:06.4]}
29... axb4 {[%clk 0:00:45.6]} 30. axb4 {[%clk 0:01:06.5]} 30... e3 {[%clk
0:00:46.6]} 31. Rb3 {[%clk 0:01:07.3]} 31... exf2+ {[%clk 0:00:47.2]} 32. Kxf2
{[%clk 0:01:07.7]} 32... Rf8 {[%clk 0:00:47.6]} 33. Nf4 {[%clk 0:01:01.6]} 33...
Be5 {[%clk 0:00:42.5]} 34. Nf3 {[%clk 0:00:59.5]} 34... Bc2 {[%clk 0:00:30.8]}
35. Nxe5 {[%clk 0:00:59.9]} 35... Bxb3 {[%clk 0:00:30.4]} 36. Ng4 {[%clk
0:01:00.1]} 36... Nxb4 {[%clk 0:00:24.6]} 37. Re7 {[%clk 0:00:49]} 37... Nd3+
{[%clk 0:00:23.3]} 38. Ke3 {[%clk 0:00:49.6]} 38... Nxf4 {[%clk 0:00:24.6]} 39.
gxf4 {[%clk 0:00:47.1]} 39... Rae8 {[%clk 0:00:20]} 40. Nf6+ {[%clk 0:00:44.4]}
40... Rxf6 {[%clk 0:00:21.5]} 41. Rxe8+ {[%clk 0:00:45.9]} 41... Rf8 {[%clk
0:00:22.8]} 42. Re4 {[%clk 0:00:35.3]} 42... b5 {[%clk 0:00:19.2]} 43. cxb5
{[%clk 0:00:35.9]} 43... Bxd5 {[%clk 0:00:20.5]} 44. Rd4 {[%clk 0:00:31.4]}
44... Rf5 {[%clk 0:00:21.3]} 45. Bd8 {[%clk 0:00:30.1]} 45... c5 {[%clk
0:00:19.6]} 46. bxc6 {[%clk 0:00:25]} 46... Bxc6 {[%clk 0:00:20.5]} 47. Rxd6
{[%clk 0:00:25.8]} 47... Be8 {[%clk 0:00:16.5]} 48. Bf6 {[%clk 0:00:24.4]} 48...
Kf7 {[%clk 0:00:15.8]} 49. Be5 {[%clk 0:00:24.6]} 49... Rh5 {[%clk 0:00:15.9]}
50. Ke4 {[%clk 0:00:20.2]} 50... Ke7 {[%clk 0:00:17.1]} 51. Rb6 {[%clk
0:00:19.1]} 51... Bd7 {[%clk 0:00:18]} 52. Bf6+ {[%clk 0:00:18.1]} 52... Kf7
{[%clk 0:00:18.8]} 53. Bg5 {[%clk 0:00:19.8]} 53... Rh8 {[%clk 0:00:19.4]} 54.
Rf6+ {[%clk 0:00:18.6]} 54... Ke8 {[%clk 0:00:20.2]} 55. Rb6 {[%clk 0:00:16.8]}
55... Kf7 {[%clk 0:00:21.2]} 56. f5 {[%clk 0:00:17.2]} 56... Rh5 {[%clk
0:00:21.3]} 57. Kf4 {[%clk 0:00:18.1]} 57... Rh1 {[%clk 0:00:21.5]} 58. Rf6+
{[%clk 0:00:17.3]} 58... Ke8 {[%clk 0:00:21.8]} 59. Ke5 {[%clk 0:00:15.9]} 59...
Re1+ {[%clk 0:00:21.5]} 60. Kd4 {[%clk 0:00:16.3]} 60... Rd1+ {[%clk 0:00:22.8]}
61. Ke4 {[%clk 0:00:17]} 61... Re1+ {[%clk 0:00:23.6]} 62. Be3 {[%clk
0:00:18.3]} 62... Ke7 {[%clk 0:00:24.2]} 63. Rh6 {[%clk 0:00:19.3]} 63... Bxf5+
{[%clk 0:00:25.4]} 64. Kxf5 {[%clk 0:00:18.5]} 64... Rxe3 {[%clk 0:00:25.6]} 65.
Rh4 {[%clk 0:00:19.3]} 65... Ke8 {[%clk 0:00:26.1]} 66. Re4+ {[%clk 0:00:20.3]}
66... Rxe4 {[%clk 0:00:27.5]} 67. Kxe4 {[%clk 0:00:22.2]} 1/2-1/2

[Event "*** Titled Tuesday 3|2 Blitz (Early)"]
[Site "Chess.com"]
[Date "2016.11.01"]
[Round "4"]
[White "viditchess"]
[Black "Dlugy"]
[Result "1/2-1/2"]
[WhiteElo "2539"]
[BlackElo "2588"]
[TimeControl "180+2"]
[EndTime "11:52:23 PDT"]
[Termination "Game drawn - insufficient material"]

1. d4 {[%clk 0:03:02]} 1... d5 {[%clk 0:02:58.2]} 2. c4 {[%clk 0:03:01.1]} 2...
dxc4 {[%clk 0:02:59.2]} 3. Nf3 {[%clk 0:03:02.3]} 3... a6 {[%clk 0:03:00.4]} 4.
e3 {[%clk 0:03:03.6]} 4... e6 {[%clk 0:03:01.9]} 5. Bxc4 {[%clk 0:03:03.9]} 5...
c5 {[%clk 0:03:03.5]} 6. O-O {[%clk 0:03:04.4]} 6... Nf6 {[%clk 0:03:04.9]} 7.
b3 {[%clk 0:03:04.7]} 7... b5 {[%clk 0:03:01.8]} 8. Be2 {[%clk 0:03:04.8]} 8...
Bb7 {[%clk 0:03:03.3]} 9. Bb2 {[%clk 0:03:05.5]} 9... Nbd7 {[%clk 0:03:04.4]}
10. a4 {[%clk 0:03:00.6]} 10... b4 {[%clk 0:03:05.3]} 11. Nbd2 {[%clk
0:03:00.1]} 11... Be7 {[%clk 0:03:05.9]} 12. Nc4 {[%clk 0:02:57.2]} 12... a5
{[%clk 0:03:06.5]} 13. Rc1 {[%clk 0:02:53.3]} 13... O-O {[%clk 0:03:07]} 14.
Nfe5 {[%clk 0:02:53.1]} 14... cxd4 {[%clk 0:02:53.5]} 15. Bxd4 {[%clk
0:02:50.6]} 15... Nc5 {[%clk 0:02:41.1]} 16. Bf3 {[%clk 0:02:02]} 16... Bxf3
{[%clk 0:02:41.1]} 17. gxf3 {[%clk 0:02:02.6]} 17... Rc8 {[%clk 0:02:19.7]} 18.
Bxc5 {[%clk 0:01:27.1]} 18... Rxc5 {[%clk 0:02:17.7]} 19. Qxd8 {[%clk
0:01:19.9]} 19... Rxd8 {[%clk 0:02:18]} 20. Rcd1 {[%clk 0:01:18.2]} 20... Kf8
{[%clk 0:02:06]} 21. Rxd8+ {[%clk 0:01:11.9]} 21... Bxd8 {[%clk 0:02:07.1]} 22.
Rd1 {[%clk 0:01:11.4]} 22... Bc7 {[%clk 0:02:03.3]} 23. Nd7+ {[%clk 0:00:52.2]}
23... Nxd7 {[%clk 0:02:03.9]} 24. Rxd7 {[%clk 0:00:54.1]} 24... Ke8 {[%clk
0:02:05.6]} 25. Rd2 {[%clk 0:00:41.8]} 25... Rh5 {[%clk 0:02:03.4]} 26. f4
{[%clk 0:00:35.5]} 26... g5 {[%clk 0:02:04]} 27. fxg5 {[%clk 0:00:30]} 27...
Rxg5+ {[%clk 0:02:05.2]} 28. Kf1 {[%clk 0:00:26.7]} 28... Ke7 {[%clk 0:01:51.1]}
29. f4 {[%clk 0:00:27.5]} 29... Rh5 {[%clk 0:01:44.6]} 30. Kg2 {[%clk
0:00:28.8]} 30... Rd5 {[%clk 0:01:32.2]} 31. Kf3 {[%clk 0:00:29.1]} 31... Rc5
{[%clk 0:01:21.2]} 32. e4 {[%clk 0:00:25.8]} 32... f6 {[%clk 0:01:15.1]} 33. Rg2
{[%clk 0:00:25.1]} 33... Kf7 {[%clk 0:01:13.5]} 34. e5 {[%clk 0:00:26.4]} 34...
Rd5 {[%clk 0:01:11.3]} 35. exf6 {[%clk 0:00:22.7]} 35... Kxf6 {[%clk 0:01:05.4]}
36. Rd2 {[%clk 0:00:20.6]} 36... Rf5 {[%clk 0:00:31]} 37. Rd4 {[%clk 0:00:14.3]}
37... e5 {[%clk 0:00:32.3]} 38. Rd5 {[%clk 0:00:14.4]} 38... Rxf4+ {[%clk
0:00:31.6]} 39. Ke3 {[%clk 0:00:15.1]} 39... Rh4 {[%clk 0:00:31.5]} 40. Rd7
{[%clk 0:00:16.1]} 40... Rh3+ {[%clk 0:00:28.5]} 41. Ke4 {[%clk 0:00:17.2]}
41... Rh4+ {[%clk 0:00:29.7]} 42. Ke3 {[%clk 0:00:16.7]} 42... Rh3+ {[%clk
0:00:30.1]} 43. Ke2 {[%clk 0:00:15.1]} 43... Rxh2+ {[%clk 0:00:30.9]} 44. Kf1
{[%clk 0:00:16.4]} 44... Rh3 {[%clk 0:00:21.1]} 45. Rxc7 {[%clk 0:00:17.6]}
45... Rxb3 {[%clk 0:00:22.8]} 46. Ra7 {[%clk 0:00:15.4]} 46... h5 {[%clk
0:00:16.8]} 47. Rxa5 {[%clk 0:00:15.9]} 47... Rb1+ {[%clk 0:00:18.1]} 48. Ke2
{[%clk 0:00:16.8]} 48... b3 {[%clk 0:00:19.7]} 49. Nd2 {[%clk 0:00:17.9]} 49...
Rb2 {[%clk 0:00:19.2]} 50. Rb5 {[%clk 0:00:16.8]} 50... Ra2 {[%clk 0:00:19.4]}
51. Rxb3 {[%clk 0:00:07.5]} 51... Rxa4 {[%clk 0:00:20.2]} 52. Rh3 {[%clk
0:00:09.4]} 52... Kg5 {[%clk 0:00:18.6]} 53. Nf3+ {[%clk 0:00:09.7]} 53... Kh6
{[%clk 0:00:16.6]} 54. Rh1 {[%clk 0:00:07.5]} 54... e4 {[%clk 0:00:15.4]} 55.
Nd2 {[%clk 0:00:08.6]} 55... Kg5 {[%clk 0:00:16.2]} 56. Ke3 {[%clk 0:00:10.2]}
56... Kg4 {[%clk 0:00:13.4]} 57. Nxe4 {[%clk 0:00:11]} 57... h4 {[%clk 0:00:14]}
58. Nf2+ {[%clk 0:00:12]} 58... Kh5 {[%clk 0:00:11]} 59. Kf3 {[%clk 0:00:13]}
59... Ra3+ {[%clk 0:00:12.2]} 60. Kg2 {[%clk 0:00:14.4]} 60... Rg3+ {[%clk
0:00:13.2]} 61. Kh2 {[%clk 0:00:15.7]} 61... Rf3 {[%clk 0:00:14]} 62. Nh3 {[%clk
0:00:16.6]} 62... Kg4 {[%clk 0:00:15]} 63. Rg1+ {[%clk 0:00:08.2]} 63... Rg3
{[%clk 0:00:16.2]} 64. Nf2+ {[%clk 0:00:04.3]} 64... Kf3 {[%clk 0:00:17.3]} 65.
Nh3 {[%clk 0:00:05.2]} 65... Rxg1 {[%clk 0:00:16.6]} 66. Nxg1+ {[%clk
0:00:07.1]} 66... Kf2 {[%clk 0:00:16.7]} 67. Kh3 {[%clk 0:00:07.8]} 67... Kxg1
{[%clk 0:00:18]} 68. Kxh4 {[%clk 0:00:09.3]} 1/2-1/2

[Event "*** Titled Tuesday 3|2 Blitz (Early)"]
[Site "Chess.com"]
[Date "2016.11.01"]
[Round "4"]
[White "RitvarsReimanis"]
[Black "Haridaskesavan"]
[Result "0-1"]
[WhiteElo "2390"]
[BlackElo "2131"]
[TimeControl "180+2"]
[EndTime "11:52:26 PDT"]
[Termination "Haridaskesavan won by checkmate"]

1. d4 {[%clk 0:03:00.5]} 1... Nf6 {[%clk 0:02:59.9]} 2. c4 {[%clk 0:03:01.7]}
2... d6 {[%clk 0:03:01.2]} 3. f3 {[%clk 0:03:02.1]} 3... Nbd7 {[%clk 0:03:00.7]}
4. e4 {[%clk 0:03:03.2]} 4... e5 {[%clk 0:03:02]} 5. d5 {[%clk 0:03:04.3]} 5...
Be7 {[%clk 0:03:03.2]} 6. Ne2 {[%clk 0:03:04.8]} 6... O-O {[%clk 0:03:04.2]} 7.
Nec3 {[%clk 0:03:06]} 7... Re8 {[%clk 0:03:05.4]} 8. Be2 {[%clk 0:03:05.1]} 8...
Bf8 {[%clk 0:03:06.4]} 9. O-O {[%clk 0:03:06]} 9... g6 {[%clk 0:03:07.7]} 10.
Be3 {[%clk 0:03:02.4]} 10... Bg7 {[%clk 0:03:08.8]} 11. Qd2 {[%clk 0:03:01.7]}
11... a6 {[%clk 0:03:03.8]} 12. a4 {[%clk 0:03:02.3]} 12... a5 {[%clk
0:03:00.8]} 13. Na3 {[%clk 0:03:02.7]} 13... b6 {[%clk 0:03:01.5]} 14. Nab5
{[%clk 0:03:03.3]} 14... Nc5 {[%clk 0:03:02.5]} 15. Ra3 {[%clk 0:02:55.8]} 15...
Bd7 {[%clk 0:03:00]} 16. g4 {[%clk 0:02:16.6]} 16... Bxb5 {[%clk 0:03:00.4]} 17.
Nxb5 {[%clk 0:02:15.9]} 17... Nfd7 {[%clk 0:03:01.4]} 18. Kh1 {[%clk 0:02:15.3]}
18... Rf8 {[%clk 0:02:58.8]} 19. Rg1 {[%clk 0:02:08.5]} 19... Kh8 {[%clk
0:02:58.2]} 20. Bg5 {[%clk 0:02:02.7]} 20... f6 {[%clk 0:02:59]} 21. Be3 {[%clk
0:01:52.9]} 21... Rf7 {[%clk 0:02:51]} 22. Rg2 {[%clk 0:01:47.9]} 22... Nb8
{[%clk 0:02:46.9]} 23. Bxc5 {[%clk 0:01:36.9]} 23... bxc5 {[%clk 0:02:47]} 24.
f4 {[%clk 0:01:36.2]} 24... exf4 {[%clk 0:02:43.1]} 25. Qxf4 {[%clk 0:01:38.1]}
25... Nd7 {[%clk 0:02:43.5]} 26. h4 {[%clk 0:01:19.9]} 26... Ne5 {[%clk
0:02:44]} 27. h5 {[%clk 0:01:19.4]} 27... Qf8 {[%clk 0:02:37.1]} 28. Rh3 {[%clk
0:01:14.9]} 28... Bh6 {[%clk 0:02:37.4]} 29. Qf1 {[%clk 0:01:10]} 29... gxh5
{[%clk 0:02:15.1]} 30. Rxh5 {[%clk 0:01:04.7]} 30... Bg5 {[%clk 0:02:11.1]} 31.
Rgh2 {[%clk 0:00:57.7]} 31... Kg8 {[%clk 0:02:03.6]} 32. Qf5 {[%clk 0:00:54.3]}
32... Ng6 {[%clk 0:01:51]} 33. e5 {[%clk 0:00:34.7]} 33... fxe5 {[%clk 0:01:20]}
34. Qe6 {[%clk 0:00:35.5]} 34... Re8 {[%clk 0:01:11]} 35. Qxg6+ {[%clk 0:00:18]}
35... hxg6 {[%clk 0:01:04.9]} 36. Rh8+ {[%clk 0:00:19.9]} 36... Kg7 {[%clk
0:01:05.7]} 37. Rxf8 {[%clk 0:00:17]} 37... Rexf8 {[%clk 0:01:05.2]} 38. Bd3
{[%clk 0:00:14.6]} 38... Rh8 {[%clk 0:00:40.1]} 39. Rxh8 {[%clk 0:00:14.4]}
39... Kxh8 {[%clk 0:00:41.2]} 40. Bxg6 {[%clk 0:00:14.2]} 40... Rf4 {[%clk
0:00:42.1]} 41. b3 {[%clk 0:00:12.1]} 41... Rxg4 {[%clk 0:00:40.2]} 42. Nxc7
{[%clk 0:00:13.4]} 42... Rg3 {[%clk 0:00:40.4]} 43. Nb5 {[%clk 0:00:11]} 43...
Be7 {[%clk 0:00:38]} 44. Bc2 {[%clk 0:00:10.9]} 44... Re3 {[%clk 0:00:35.5]} 45.
Kg1 {[%clk 0:00:11.5]} 45... Re2 {[%clk 0:00:36]} 46. Na3 {[%clk 0:00:09.9]}
46... Bh4 {[%clk 0:00:27.9]} 47. Kf1 {[%clk 0:00:10.1]} 47... Rf2+ {[%clk
0:00:27.5]} 48. Kg1 {[%clk 0:00:11.5]} 48... Kg7 {[%clk 0:00:27.4]} 49. Be4
{[%clk 0:00:08.4]} 49... Rb2 {[%clk 0:00:25.7]} 50. Nb5 {[%clk 0:00:09.6]} 50...
Be7 {[%clk 0:00:24.3]} 51. Kf1 {[%clk 0:00:10.5]} 51... Rxb3 {[%clk 0:00:25]}
52. Ke2 {[%clk 0:00:09.9]} 52... Rb4 {[%clk 0:00:24.4]} 53. Kd3 {[%clk 0:00:11]}
53... Rxa4 {[%clk 0:00:25.1]} 54. Kc3 {[%clk 0:00:10.1]} 54... Ra1 {[%clk
0:00:25]} 55. Bc2 {[%clk 0:00:08.7]} 55... Kf6 {[%clk 0:00:20.6]} 56. Nc7 {[%clk
0:00:06.9]} 56... a4 {[%clk 0:00:18.5]} 57. Kb2 {[%clk 0:00:07.6]} 57... Rh1
{[%clk 0:00:15.3]} 58. Bxa4 {[%clk 0:00:08.6]} 58... e4 {[%clk 0:00:14.8]} 59.
Kc3 {[%clk 0:00:09.7]} 59... Ke5 {[%clk 0:00:15]} 60. Nb5 {[%clk 0:00:06.3]}
60... Rh3+ {[%clk 0:00:15.5]} 61. Kd2 {[%clk 0:00:07]} 61... Bg5+ {[%clk
0:00:16.2]} 62. Ke1 {[%clk 0:00:07.5]} 62... Rh2 {[%clk 0:00:17]} 63. Na7 {[%clk
0:00:08.5]} 63... e3 {[%clk 0:00:17.6]} 64. Nc6+ {[%clk 0:00:09]} 64... Ke4
{[%clk 0:00:18.3]} 65. Bd1 {[%clk 0:00:10]} 65... Kd3 {[%clk 0:00:18.6]} 66. Bf3
{[%clk 0:00:11.3]} 66... Rf2 {[%clk 0:00:18.7]} 67. Bh5 {[%clk 0:00:12.3]} 67...
Bh4 {[%clk 0:00:17.6]} 68. Kd1 {[%clk 0:00:09.6]} 68... Rf1# {[%clk 0:00:17.9]}
0-1